[Event "December 19 Late 2023"]
[Site "https://www.chess.com"]
[Date "2023.12.19"]
[Round "2"]
[White "Niemann, Hans Moke"]
[Black "Golubev, Mikhail"]
[Result "1-0"]
[Board "4"]
[TimeControl "180+1"]
[WhiteFideId "2093596"]
[BlackFideId "14100983"]
[WhiteElo "2614"]
[BlackElo "2352"]
[WhiteTeam "USA"]
[BlackTeam "UKR"]
[WhiteClock "0:00:53"]
[BlackClock "0:00:00"]

1. e4 {[%clk 0:03:00]}  c5 {[%clk 0:02:59]} 2. Nf3 {[%clk 0:03:00]}  d6 {[%clk 0:02:59]} 3. Bb5+ {[%clk 0:03:00]}  Bd7 {[%clk 0:02:58]} 4. c4 {[%clk 0:03:00]}  Nf6 {[%clk 0:02:46]} 5. Nc3 {[%clk 0:02:59]}  Nc6 {[%clk 0:02:45]} 6. d4 {[%clk 0:02:55]}  cxd4 {[%clk 0:02:44]} 7. Nxd4 {[%clk 0:02:55]}  g6 {[%clk 0:02:43]} 8. O-O {[%clk 0:02:53]}  Bg7 {[%clk 0:02:43]} 9. Be3 {[%clk 0:02:42]}  O-O {[%clk 0:02:34]} 10. f3 {[%clk 0:02:41]}  a6 {[%clk 0:02:22]} 11. Bxc6 {[%clk 0:02:41]}  bxc6 {[%clk 0:02:20]} 12. c5 {[%clk 0:02:41]}  d5 {[%clk 0:02:12]} 13. e5 {[%clk 0:02:39]}  Ne8 {[%clk 0:02:08]} 14. f4 {[%clk 0:02:38]}  Rb8 {[%clk 0:02:02]} 15. Na4 {[%clk 0:02:37]}  Nc7 {[%clk 0:01:37]} 16. Nb6 {[%clk 0:02:36]}  Ne6 {[%clk 0:01:23]} 17. b4 {[%clk 0:02:32]}  f6 {[%clk 0:01:12]} 18. Nxe6 {[%clk 0:02:21]}  Bxe6 {[%clk 0:01:11]} 19. Bd4 {[%clk 0:02:21]}  fxe5 {[%clk 0:01:06]} 20. fxe5 {[%clk 0:02:22]}  Rxf1+ {[%clk 0:00:40]} 21. Qxf1 {[%clk 0:02:22]}  Qf8 {[%clk 0:00:40]} 22. Qd3 {[%clk 0:02:04]}  Qf5 {[%clk 0:00:35]} 23. Qxf5 {[%clk 0:02:01]}  Bxf5 {[%clk 0:00:33]} 24. a4 {[%clk 0:02:01]}  Bd3 {[%clk 0:00:24]} 25. Kf2 {[%clk 0:01:59]}  Bh6 {[%clk 0:00:21]} 26. Kg1 {[%clk 0:01:37]}  Rf8 {[%clk 0:00:20]} 27. h3 {[%clk 0:01:16]}  Bf4 {[%clk 0:00:13]} 28. Nd7 {[%clk 0:01:14]}  Rd8 {[%clk 0:00:11]} 29. Nb6 {[%clk 0:01:11]}  Rf8 {[%clk 0:00:11]} 30. Ra3 {[%clk 0:01:07]}  Be2 {[%clk 0:00:08]} 31. Ra2 {[%clk 0:01:06]}  Bd3 {[%clk 0:00:07]} 32. Ra3 {[%clk 0:00:57]}  Be2 {[%clk 0:00:06]} 33. Nd7 {[%clk 0:00:56]}  Rd8 {[%clk 0:00:04]} 34. e6 {[%clk 0:00:56]}  Bc4 {[%clk 0:00:03]} 35. Rf3 {[%clk 0:00:53]}  Bc7 {[%clk 0:00:03]} 36. Rf7 {[%clk 0:00:52]}  Rxd7 {[%clk 0:00:02]} 37. Rg7+ {[%clk 0:00:52]}  Kf8 {[%clk 0:00:00]} 38. Rxh7 {[%clk 0:00:53]} 1-0

[Event "December 19 Late 2023"]
[Site "https://www.chess.com"]
[Date "2023.12.19"]
[Round "2"]
[White "Ezat, Mohamed"]
[Black "Bluebaum, Matthias"]
[Result "0-1"]
[Board "7"]
[TimeControl "180+1"]
[WhiteFideId "10600906"]
[BlackFideId "24651516"]
[WhiteElo "2367"]
[BlackElo "2621"]
[WhiteTeam "EGY"]
[BlackTeam "GER"]
[WhiteClock "0:00:35"]
[BlackClock "0:02:06"]

1. d4 {[%clk 0:03:00]}  d5 {[%clk 0:02:59]} 2. c4 {[%clk 0:03:00]}  e6 {[%clk 0:03:00]} 3. Nc3 {[%clk 0:03:00]}  Bb4 {[%clk 0:03:01]} 4. Nf3 {[%clk 0:02:58]}  Nf6 {[%clk 0:03:01]} 5. Bg5 {[%clk 0:02:57]}  h6 {[%clk 0:03:01]} 6. Bxf6 {[%clk 0:02:57]}  Qxf6 {[%clk 0:03:02]} 7. Rc1 {[%clk 0:02:57]}  c5 {[%clk 0:03:01]} 8. cxd5 {[%clk 0:02:54]}  exd5 {[%clk 0:03:02]} 9. e3 {[%clk 0:02:53]}  O-O {[%clk 0:03:01]} 10. h3 {[%clk 0:02:50]}  Nc6 {[%clk 0:02:54]} 11. dxc5 {[%clk 0:02:50]}  Rd8 {[%clk 0:02:49]} 12. Qb3 {[%clk 0:02:29]}  d4 {[%clk 0:02:30]} 13. exd4 {[%clk 0:02:28]}  Nxd4 {[%clk 0:02:31]} 14. Qxb4 {[%clk 0:02:15]}  Qf4 {[%clk 0:02:31]} 15. Nxd4 {[%clk 0:01:22]}  Rxd4 {[%clk 0:02:24]} 16. Qxd4 {[%clk 0:00:58]}  Qxd4 {[%clk 0:02:23]} 17. Be2 {[%clk 0:00:58]}  Qxc5 {[%clk 0:02:18]} 18. O-O {[%clk 0:00:57]}  Be6 {[%clk 0:02:18]} 19. Bf3 {[%clk 0:00:57]}  Qb6 {[%clk 0:02:18]} 20. Rc2 {[%clk 0:00:53]}  Rd8 {[%clk 0:02:17]} 21. Rfc1 {[%clk 0:00:53]}  g6 {[%clk 0:02:15]} 22. b3 {[%clk 0:00:52]}  Qb4 {[%clk 0:02:12]} 23. Na4 {[%clk 0:00:52]}  b6 {[%clk 0:02:12]} 24. Nc3 {[%clk 0:00:51]}  Qf4 {[%clk 0:02:12]} 25. Ne2 {[%clk 0:00:49]}  Qf6 {[%clk 0:02:12]} 26. Ng3 {[%clk 0:00:48]}  Bxh3 {[%clk 0:02:08]} 27. Rc7 {[%clk 0:00:48]}  Be6 {[%clk 0:02:06]} 28. Rxa7 {[%clk 0:00:47]}  h5 {[%clk 0:02:06]} 29. Ne4 {[%clk 0:00:46]}  Qf4 {[%clk 0:02:06]} 30. Rb7 {[%clk 0:00:35]}  Qxc1+ {[%clk 0:02:06]} 0-1

[Event "December 19 Late 2023"]
[Site "https://www.chess.com"]
[Date "2023.12.19"]
[Round "2"]
[White "Keymer, Vincent"]
[Black "Lizak, Peter"]
[Result "1-0"]
[Board "8"]
[TimeControl "180+1"]
[WhiteFideId "12940690"]
[BlackFideId "731595"]
[WhiteElo "2629"]
[BlackElo "2420"]
[WhiteTeam "GER"]
[BlackTeam "HUN"]
[WhiteClock "0:00:35"]
[BlackClock "0:00:00"]

1. h3 {[%clk 0:03:00]}  d5 {[%clk 0:02:58]} 2. Nf3 {[%clk 0:02:59]}  Nc6 {[%clk 0:02:58]} 3. d4 {[%clk 0:02:59]}  Bf5 {[%clk 0:02:58]} 4. c4 {[%clk 0:02:51]}  e6 {[%clk 0:02:57]} 5. cxd5 {[%clk 0:02:47]}  exd5 {[%clk 0:02:57]} 6. Bg5 {[%clk 0:02:47]}  Bb4+ {[%clk 0:02:55]} 7. Nc3 {[%clk 0:02:46]}  Nge7 {[%clk 0:02:56]} 8. e3 {[%clk 0:02:44]}  f6 {[%clk 0:02:55]} 9. Bf4 {[%clk 0:02:43]}  g5 {[%clk 0:02:55]} 10. Bh2 {[%clk 0:02:43]}  h5 {[%clk 0:02:56]} 11. a3 {[%clk 0:02:28]}  Bd6 {[%clk 0:02:55]} 12. Bxd6 {[%clk 0:02:16]}  Qxd6 {[%clk 0:02:55]} 13. g3 {[%clk 0:02:15]}  O-O-O {[%clk 0:02:46]} 14. Bg2 {[%clk 0:02:09]}  Kb8 {[%clk 0:02:37]} 15. Rc1 {[%clk 0:02:08]}  Qe6 {[%clk 0:02:35]} 16. h4 {[%clk 0:02:00]}  Bg4 {[%clk 0:02:32]} 17. Qd3 {[%clk 0:01:51]}  Nf5 {[%clk 0:02:03]} 18. hxg5 {[%clk 0:01:51]}  Bxf3 {[%clk 0:01:42]} 19. Bxf3 {[%clk 0:01:51]}  fxg5 {[%clk 0:01:33]} 20. Kd2 {[%clk 0:01:43]}  g4 {[%clk 0:01:31]} 21. Bg2 {[%clk 0:01:43]}  h4 {[%clk 0:01:21]} 22. gxh4 {[%clk 0:01:32]}  Nxh4 {[%clk 0:01:18]} 23. Rcg1 {[%clk 0:01:33]}  Qf7 {[%clk 0:00:56]} 24. Qe2 {[%clk 0:01:30]}  Nxg2 {[%clk 0:00:43]} 25. Rxh8 {[%clk 0:01:30]}  Rxh8 {[%clk 0:00:43]} 26. Rxg2 {[%clk 0:01:31]}  Na5 {[%clk 0:00:42]} 27. Qxg4 {[%clk 0:01:26]}  Nc4+ {[%clk 0:00:41]} 28. Kc2 {[%clk 0:01:27]}  Qxf2+ {[%clk 0:00:36]} 29. Kb3 {[%clk 0:01:07]}  Nxe3 {[%clk 0:00:33]} 30. Qh3 {[%clk 0:00:37]}  Qc2+ {[%clk 0:00:00]} 31. Ka2 {[%clk 0:00:35]} 1-0

[Event "December 19 Late 2023"]
[Site "https://www.chess.com"]
[Date "2023.12.19"]
[Round "2"]
[White "Kokoszczynski, Jan"]
[Black "Van Foreest, Jorden"]
[Result "0-1"]
[Board "9"]
[TimeControl "180+1"]
[WhiteFideId "1174460"]
[BlackFideId "1039784"]
[WhiteElo "2266"]
[BlackElo "2664"]
[WhiteTeam "POL"]
[BlackTeam "NED"]
[WhiteClock "0:00:01"]
[BlackClock "0:01:13"]

1. e4 {[%clk 0:02:57]}  c5 {[%clk 0:03:00]} 2. Nf3 {[%clk 0:02:57]}  d6 {[%clk 0:02:59]} 3. Bb5+ {[%clk 0:02:54]}  Nd7 {[%clk 0:02:59]} 4. Ba4 {[%clk 0:02:54]}  Nf6 {[%clk 0:02:50]} 5. O-O {[%clk 0:02:54]}  a6 {[%clk 0:02:50]} 6. c4 {[%clk 0:02:51]}  e6 {[%clk 0:02:49]} 7. Nc3 {[%clk 0:02:50]}  b6 {[%clk 0:02:47]} 8. d3 {[%clk 0:02:38]}  Bb7 {[%clk 0:02:45]} 9. Re1 {[%clk 0:02:30]}  Be7 {[%clk 0:02:45]} 10. Rb1 {[%clk 0:02:26]}  O-O {[%clk 0:02:44]} 11. a3 {[%clk 0:02:26]}  Rc8 {[%clk 0:02:34]} 12. Bd2 {[%clk 0:02:19]}  Ne5 {[%clk 0:02:31]} 13. Qe2 {[%clk 0:02:12]}  Nxf3+ {[%clk 0:02:30]} 14. Qxf3 {[%clk 0:02:12]}  Nd7 {[%clk 0:02:30]} 15. Qe2 {[%clk 0:02:12]}  Bf6 {[%clk 0:02:29]} 16. Bf4 {[%clk 0:01:40]}  Ne5 {[%clk 0:02:24]} 17. h3 {[%clk 0:01:38]}  Ng6 {[%clk 0:02:24]} 18. Be3 {[%clk 0:01:36]}  Bd4 {[%clk 0:02:23]} 19. Qd2 {[%clk 0:01:07]}  f5 {[%clk 0:02:22]} 20. Bxd4 {[%clk 0:00:55]}  cxd4 {[%clk 0:02:22]} 21. Ne2 {[%clk 0:00:56]}  e5 {[%clk 0:02:18]} 22. exf5 {[%clk 0:00:55]}  Nh4 {[%clk 0:02:18]} 23. f3 {[%clk 0:00:54]}  Bxf3 {[%clk 0:02:18]} 24. Ng3 {[%clk 0:00:41]}  Bxg2 {[%clk 0:02:18]} 25. Bd1 {[%clk 0:00:33]}  Bb7 {[%clk 0:02:15]} 26. Rf1 {[%clk 0:00:30]}  Rc7 {[%clk 0:02:12]} 27. Bg4 {[%clk 0:00:30]}  Rcf7 {[%clk 0:02:12]} 28. b4 {[%clk 0:00:30]}  Qc7 {[%clk 0:01:55]} 29. Qg5 {[%clk 0:00:22]}  Qe7 {[%clk 0:01:53]} 30. Qxe7 {[%clk 0:00:12]}  Rxe7 {[%clk 0:01:54]} 31. Rbe1 {[%clk 0:00:10]}  Ref7 {[%clk 0:01:54]} 32. Rf2 {[%clk 0:00:10]}  g6 {[%clk 0:01:53]} 33. Ref1 {[%clk 0:00:10]}  h5 {[%clk 0:01:53]} 34. Bd1 {[%clk 0:00:07]}  gxf5 {[%clk 0:01:47]} 35. Kh2 {[%clk 0:00:07]}  f4 {[%clk 0:01:45]} 36. Nxh5 {[%clk 0:00:08]}  Kh8 {[%clk 0:01:43]} 37. Bg4 {[%clk 0:00:08]}  Rh7 {[%clk 0:01:34]} 38. Kg1 {[%clk 0:00:04]}  Rh6 {[%clk 0:01:31]} 39. c5 {[%clk 0:00:03]}  bxc5 {[%clk 0:01:30]} 40. bxc5 {[%clk 0:00:04]}  dxc5 {[%clk 0:01:31]} 41. Rb1 {[%clk 0:00:04]}  Bd5 {[%clk 0:01:24]} 42. Rc1 {[%clk 0:00:04]}  c4 {[%clk 0:01:24]} 43. dxc4 {[%clk 0:00:04]}  Bc6 {[%clk 0:01:24]} 44. Re1 {[%clk 0:00:03]}  Rxh5 {[%clk 0:01:21]} 45. Bxh5 {[%clk 0:00:02]}  e4 {[%clk 0:01:22]} 46. Bg4 {[%clk 0:00:02]}  e3 {[%clk 0:01:21]} 47. Rb2 {[%clk 0:00:03]}  f3 {[%clk 0:01:21]} 48. Rd1 {[%clk 0:00:02]}  d3 {[%clk 0:01:15]} 49. Rxd3 {[%clk 0:00:02]}  f2+ {[%clk 0:01:13]} 50. Kh2 {[%clk 0:00:01]} 0-1

[Event "December 19 Late 2023"]
[Site "https://www.chess.com"]
[Date "2023.12.19"]
[Round "2"]
[White "Sarana, Alexey"]
[Black "Domingo Nunez, Alejandro"]
[Result "1-0"]
[Board "10"]
[TimeControl "180+1"]
[WhiteFideId "24133795"]
[BlackFideId "22245561"]
[WhiteElo "2707"]
[BlackElo "2252"]
[WhiteTeam "SRB"]
[BlackTeam "ESP"]
[WhiteClock "0:00:11"]
[BlackClock "0:00:00"]

1. d4 {[%clk 0:03:00]}  Nf6 {[%clk 0:02:56]} 2. c4 {[%clk 0:03:01]}  g6 {[%clk 0:02:56]} 3. Nc3 {[%clk 0:03:02]}  Bg7 {[%clk 0:02:56]} 4. e4 {[%clk 0:03:01]}  d6 {[%clk 0:02:55]} 5. Bd3 {[%clk 0:03:02]}  O-O {[%clk 0:02:55]} 6. Nge2 {[%clk 0:03:03]}  c5 {[%clk 0:02:51]} 7. f3 {[%clk 0:02:58]}  cxd4 {[%clk 0:02:46]} 8. Nxd4 {[%clk 0:02:58]}  Nc6 {[%clk 0:02:37]} 9. Nxc6 {[%clk 0:02:54]}  bxc6 {[%clk 0:02:37]} 10. O-O {[%clk 0:02:55]}  Rb8 {[%clk 0:02:23]} 11. Kh1 {[%clk 0:02:55]}  Qa5 {[%clk 0:02:15]} 12. Qc2 {[%clk 0:02:54]}  Qb4 {[%clk 0:02:13]} 13. Rb1 {[%clk 0:02:50]}  Ba6 {[%clk 0:02:12]} 14. b3 {[%clk 0:02:24]}  Nd7 {[%clk 0:01:59]} 15. Bd2 {[%clk 0:02:25]}  Qc5 {[%clk 0:01:57]} 16. f4 {[%clk 0:02:20]}  Qa3 {[%clk 0:01:05]} 17. Rf3 {[%clk 0:02:12]}  Nc5 {[%clk 0:01:03]} 18. Be2 {[%clk 0:02:09]}  Ne6 {[%clk 0:01:03]} 19. Be3 {[%clk 0:01:39]}  Nd4 {[%clk 0:01:03]} 20. Bxd4 {[%clk 0:01:38]}  Bxd4 {[%clk 0:01:04]} 21. Rd1 {[%clk 0:01:36]}  Bg7 {[%clk 0:00:59]} 22. Bd3 {[%clk 0:01:30]}  Qa5 {[%clk 0:00:53]} 23. Ne2 {[%clk 0:01:29]}  Bb7 {[%clk 0:00:45]} 24. Ng3 {[%clk 0:01:27]}  Qc5 {[%clk 0:00:42]} 25. h3 {[%clk 0:01:26]}  a5 {[%clk 0:00:43]} 26. Rdf1 {[%clk 0:01:25]}  a4 {[%clk 0:00:40]} 27. Ne2 {[%clk 0:01:21]}  Ba6 {[%clk 0:00:38]} 28. Qd1 {[%clk 0:01:18]}  Qa3 {[%clk 0:00:37]} 29. Nc1 {[%clk 0:01:18]}  Bb2 {[%clk 0:00:31]} 30. Bb1 {[%clk 0:01:10]}  Bg7 {[%clk 0:00:18]} 31. f5 {[%clk 0:01:07]}  axb3 {[%clk 0:00:15]} 32. axb3 {[%clk 0:01:07]}  Qb2 {[%clk 0:00:15]} 33. Bc2 {[%clk 0:01:06]}  Qd4 {[%clk 0:00:11]} 34. Rd3 {[%clk 0:00:55]}  Qc5 {[%clk 0:00:11]} 35. Rd2 {[%clk 0:00:52]}  Bb7 {[%clk 0:00:10]} 36. Nd3 {[%clk 0:00:52]}  Qb6 {[%clk 0:00:10]} 37. Rdf2 {[%clk 0:00:47]}  Ra8 {[%clk 0:00:09]} 38. Qg4 {[%clk 0:00:43]}  Qd4 {[%clk 0:00:07]} 39. fxg6 {[%clk 0:00:39]}  hxg6 {[%clk 0:00:08]} 40. Nf4 {[%clk 0:00:36]}  Ra2 {[%clk 0:00:06]} 41. Ne6 {[%clk 0:00:18]}  fxe6 {[%clk 0:00:05]} 42. Rxf8+ {[%clk 0:00:18]}  Bxf8 {[%clk 0:00:05]} 43. Qxe6+ {[%clk 0:00:11]}  Kh7 {[%clk 0:00:00]} 44. Rxf8 {[%clk 0:00:11]} 1-0

[Event "December 19 Late 2023"]
[Site "https://www.chess.com"]
[Date "2023.12.19"]
[Round "2"]
[White "Rojas Alarcon, Julian Antonio"]
[Black "Bortnyk, Mykola"]
[Result "1-0"]
[Board "11"]
[TimeControl "180+1"]
[WhiteFideId "5107407"]
[BlackFideId "14120836"]
[WhiteElo "2340"]
[BlackElo "2592"]
[WhiteTeam "MEX"]
[BlackTeam "UKR"]
[WhiteClock "0:00:12"]
[BlackClock "0:00:00"]

1. d4 {[%clk 0:03:00]}  Nf6 {[%clk 0:02:58]} 2. c4 {[%clk 0:03:00]}  e6 {[%clk 0:02:59]} 3. Nc3 {[%clk 0:03:00]}  Bb4 {[%clk 0:03:00]} 4. Qc2 {[%clk 0:02:59]}  c5 {[%clk 0:02:57]} 5. dxc5 {[%clk 0:02:57]}  Qa5 {[%clk 0:02:48]} 6. Bd2 {[%clk 0:02:54]}  Na6 {[%clk 0:02:46]} 7. e3 {[%clk 0:02:50]}  O-O {[%clk 0:02:42]} 8. a3 {[%clk 0:02:44]}  Bxc5 {[%clk 0:02:21]} 9. Nf3 {[%clk 0:02:42]}  Qc7 {[%clk 0:02:05]} 10. b4 {[%clk 0:02:37]}  Be7 {[%clk 0:02:06]} 11. c5 {[%clk 0:02:34]}  b6 {[%clk 0:02:04]} 12. Qa4 {[%clk 0:02:34]}  Nb8 {[%clk 0:01:51]} 13. Nb5 {[%clk 0:02:25]}  Qb7 {[%clk 0:01:48]} 14. cxb6 {[%clk 0:02:02]}  axb6 {[%clk 0:01:44]} 15. Qb3 {[%clk 0:01:58]}  Nc6 {[%clk 0:01:45]} 16. Bd3 {[%clk 0:01:58]}  d5 {[%clk 0:01:45]} 17. Bc3 {[%clk 0:01:46]}  Qb8 {[%clk 0:01:39]} 18. Rc1 {[%clk 0:01:31]}  e5 {[%clk 0:01:35]} 19. Nd2 {[%clk 0:01:18]}  Be6 {[%clk 0:01:30]} 20. Qd1 {[%clk 0:01:11]}  d4 {[%clk 0:01:26]} 21. Bb2 {[%clk 0:01:10]}  dxe3 {[%clk 0:01:22]} 22. Rxc6 {[%clk 0:01:09]}  exd2+ {[%clk 0:01:22]} 23. Qxd2 {[%clk 0:01:10]}  Rd8 {[%clk 0:01:18]} 24. Qe2 {[%clk 0:01:06]}  e4 {[%clk 0:01:13]} 25. Bc4 {[%clk 0:01:01]}  Bg4 {[%clk 0:01:05]} 26. f3 {[%clk 0:00:56]}  Bd7 {[%clk 0:00:57]} 27. Rc7 {[%clk 0:00:46]}  exf3 {[%clk 0:00:54]} 28. Qxe7 {[%clk 0:00:41]}  Kh8 {[%clk 0:00:20]} 29. Bxf7 {[%clk 0:00:29]}  f2+ {[%clk 0:00:07]} 30. Kxf2 {[%clk 0:00:29]}  Ng4+ {[%clk 0:00:07]} 31. Kf3 {[%clk 0:00:24]}  Bc6+ {[%clk 0:00:03]} 32. Kxg4 {[%clk 0:00:18]}  h5+ {[%clk 0:00:01]} 33. Bxh5 {[%clk 0:00:17]}  Rg8 {[%clk 0:00:01]} 34. Bxg7+ {[%clk 0:00:16]}  Kh7 {[%clk 0:00:00]} 35. Qf7 {[%clk 0:00:12]} 1-0

[Event "December 19 Late 2023"]
[Site "https://www.chess.com"]
[Date "2023.12.19"]
[Round "2"]
[White "Hajiyev, Kanan"]
[Black "Esipenko, Andrey"]
[Result "0-1"]
[Board "13"]
[TimeControl "180+1"]
[WhiteFideId "13404148"]
[BlackFideId "24175439"]
[WhiteElo "2102"]
[BlackElo "2615"]
[WhiteTeam "AZE"]
[BlackTeam "FID"]
[WhiteClock "0:00:04"]
[BlackClock "0:00:11"]

1. d4 {[%clk 0:03:00]}  g6 {[%clk 0:03:00]} 2. Nf3 {[%clk 0:03:01]}  Bg7 {[%clk 0:03:00]} 3. g3 {[%clk 0:03:01]}  b5 {[%clk 0:02:59]} 4. Bg2 {[%clk 0:03:02]}  Bb7 {[%clk 0:02:59]} 5. O-O {[%clk 0:03:02]}  e6 {[%clk 0:02:58]} 6. b3 {[%clk 0:03:02]}  d6 {[%clk 0:02:53]} 7. Bb2 {[%clk 0:03:02]}  Nd7 {[%clk 0:02:52]} 8. Nbd2 {[%clk 0:02:57]}  Ngf6 {[%clk 0:02:48]} 9. c4 {[%clk 0:02:54]}  a6 {[%clk 0:02:46]} 10. Rc1 {[%clk 0:02:53]}  c5 {[%clk 0:02:43]} 11. e3 {[%clk 0:02:47]}  O-O {[%clk 0:02:41]} 12. Qc2 {[%clk 0:02:45]}  b4 {[%clk 0:02:31]} 13. Rfd1 {[%clk 0:02:37]}  Qc7 {[%clk 0:02:31]} 14. Ng5 {[%clk 0:02:31]}  Bxg2 {[%clk 0:02:29]} 15. Kxg2 {[%clk 0:02:32]}  a5 {[%clk 0:02:22]} 16. dxc5 {[%clk 0:02:13]}  Nxc5 {[%clk 0:02:20]} 17. Kg1 {[%clk 0:02:02]}  Qc6 {[%clk 0:02:16]} 18. Bxf6 {[%clk 0:02:00]}  Bxf6 {[%clk 0:02:16]} 19. Nge4 {[%clk 0:02:00]}  Bg7 {[%clk 0:02:16]} 20. Nxc5 {[%clk 0:01:54]}  dxc5 {[%clk 0:02:16]} 21. Qe4 {[%clk 0:01:53]}  Qc7 {[%clk 0:02:15]} 22. Qf4 {[%clk 0:01:43]}  Be5 {[%clk 0:02:13]} 23. Qh6 {[%clk 0:01:42]}  a4 {[%clk 0:02:11]} 24. Nf3 {[%clk 0:01:41]}  Bg7 {[%clk 0:02:10]} 25. Qh4 {[%clk 0:01:41]}  axb3 {[%clk 0:01:49]} 26. axb3 {[%clk 0:01:42]}  Rfd8 {[%clk 0:01:49]} 27. Ng5 {[%clk 0:01:34]}  h6 {[%clk 0:01:46]} 28. Ne4 {[%clk 0:01:34]}  g5 {[%clk 0:01:46]} 29. Qh5 {[%clk 0:01:29]}  Qe5 {[%clk 0:01:41]} 30. Qf3 {[%clk 0:01:15]}  g4 {[%clk 0:01:36]} 31. Qf4 {[%clk 0:01:08]}  Qh5 {[%clk 0:01:04]} 32. Rxd8+ {[%clk 0:01:04]}  Rxd8 {[%clk 0:01:04]} 33. Qf6 {[%clk 0:00:39]}  Rd7 {[%clk 0:00:52]} 34. Ra1 {[%clk 0:00:34]}  Kh7 {[%clk 0:00:52]} 35. Rb1 {[%clk 0:00:22]}  Kh8 {[%clk 0:00:35]} 36. Qf4 {[%clk 0:00:20]}  e5 {[%clk 0:00:34]} 37. Nf6 {[%clk 0:00:17]}  Qg6 {[%clk 0:00:32]} 38. Qxg4 {[%clk 0:00:12]}  Qxb1+ {[%clk 0:00:31]} 39. Kg2 {[%clk 0:00:12]}  Rd8 {[%clk 0:00:27]} 40. Nd5 {[%clk 0:00:03]}  Qxb3 {[%clk 0:00:27]} 41. e4 {[%clk 0:00:01]}  Qxc4 {[%clk 0:00:25]} 42. Qf5 {[%clk 0:00:02]}  b3 {[%clk 0:00:22]} 43. Nf6 {[%clk 0:00:02]}  Bxf6 {[%clk 0:00:18]} 44. Qxf6+ {[%clk 0:00:03]}  Kh7 {[%clk 0:00:16]} 45. Qxd8 {[%clk 0:00:03]}  b2 {[%clk 0:00:12]} 46. Qb6 {[%clk 0:00:03]}  Qxe4+ {[%clk 0:00:12]} 47. Kh3 {[%clk 0:00:03]}  b1=Q {[%clk 0:00:11]} 48. Qf6 {[%clk 0:00:04]}  Qf5+ {[%clk 0:00:11]} 49. Kh4 {[%clk 0:00:04]} 0-1